fUSD/lending_fUSD_20240328
["ID","MTS","AMOUNT","RATE_DAILY","PERIOD"]
[320863351,1711648256624,-2090.9,0.00049589,120]
[320863352,1711648256634,-500.0,0.00049589,120]
[320863353,1711648256645,-1664.75,0.00049589,120]
[320863354,1711648256654,-500.0,0.00049589,120]
[320863355,1711648256663,-502.21975184,0.00049589,120]
[320863356,1711648256673,-1545.17,0.00049589,120]
[320863357,1711648256682,-1955.66,0.00049589,120]
[320863358,1711648256691,-500.0,0.00049589,120]
[320863359,1711648256699,-500.0,0.00049589,120]
[320863360,1711648256709,-1668.07,0.00049589,120]
[320863361,1711648256718,-2138.16,0.00049589,120]
[320863362,1711648256727,-500.0,0.00049589,120]
[320863363,1711648256737,-1246.81,0.00049589,120]
[320863364,1711648256746,-2352.89,0.00049589,120]
[320863365,1711648256755,-1352.29,0.00049589,120]
[320863366,1711648256764,-500.0,0.00049589,120]
[320863367,1711648256775,-2192.7,0.00049589,120]
[320863368,1711648256784,-500.0,0.00049589,120]
[320863369,1711648256792,-500.0,0.00049589,120]
[320863370,1711648256801,-854.32,0.00049589,120]
[320863371,1711648256810,-1782.5,0.00049589,120]
[320863372,1711648256819,-1737.62,0.00049589,120]
[320863373,1711648256828,-1179.34,0.00049589,120]
[320863374,1711648256837,-500.0,0.00049589,120]
[320863375,1711648256846,-500.0,0.00049589,120]
[320863376,1711648256855,-500.0,0.00049589,120]
[320863377,1711648256864,-909.85,0.00049589,120]
[320863378,1711648256874,-500.0,0.00049589,120]
[320863379,1711648256882,-794.25,0.00049589,120]
[320863380,1711648256893,-500.0,0.00049589,120]
[320863381,1711648256902,-500.0,0.00049589,120]
[320863382,1711648256911,-500.0,0.00049589,120]
[320863383,1711648256920,-3209.64,0.00049589,120]
[320863384,1711648256929,-2159.91,0.00049589,120]
[320863385,1711648256938,-772.04,0.00049589,120]
[320863386,1711648256948,-1932.54,0.00049589,120]
[320863387,1711648256957,-1610.41,0.00049589,120]
[320863388,1711648256967,-1883.64,0.00049589,120]
[320863389,1711648256976,-458.22397127,0.00049589,120]
[320863390,1711648256985,-1156.02,0.00049589,120]
[320863391,1711648256995,-500.0,0.00049589,120]
[320863392,1711648257005,-533.34,0.00049589,120]
[320863393,1711648257014,-1007.08,0.00049589,120]
[320863394,1711648257023,-1952.87,0.00049589,120]
[320863395,1711648257032,-500.0,0.00049589,120]
[320863396,1711648257042,-500.0,0.00049589,120]
[320863397,1711648257056,-240.015559,0.00049589,14]
[320863398,1711648257066,-500.0,0.00049589,120]
[320863399,1711648257075,-3696.56,0.00049589,120]
[320863400,1711648257084,-2001.25,0.00049589,120]
[320863401,1711648257094,-705.98,0.00049589,120]
[320863402,1711648257104,-500.0,0.00049589,120]
[320863403,1711648257114,-1035.1,0.00049589,120]
[320863404,1711648257123,-169.848593,0.00049589,120]
[320863405,1711648257134,-3791.63,0.00049589,120]
[320863406,1711648257146,-729.59,0.00049589,120]
[320863407,1711648257156,-500.0,0.00049589,120]
[320863408,1711648257166,-663.33,0.00049589,120]
[320863409,1711648257176,-1346.93,0.00049589,120]
[320863410,1711648257185,-1049.9,0.00049589,120]
[320863411,1711648257195,-551.54,0.00049589,120]
[320863412,1711648257204,-184.09497323,0.00049589,120]
[320863413,1711648257214,-3017.03,0.00049589,120]
[320863414,1711648257224,-2725.78,0.00049589,120]
[320863415,1711648257233,-154.28191063,0.00049647,30]
[320863416,1711648257243,-160.3639009,0.00049762,26]
[320863417,1711648257252,-151.0,0.00049763,120]
[320863418,1711648257262,-151.0,0.00049763,120]
[320863419,1711648257271,-317.11,0.00049769,2]
[320863420,1711648257280,-175.33914919,0.00049775,30]
[320863421,1711648257289,-175.33914919,0.00049801,30]
[320863422,1711648257298,-151.0,0.00049862,120]
[320863423,1711648257307,-151.0,0.00049862,120]
[320863424,1711648257317,-500.0,0.00049862,120]
[320863425,1711648257329,-150.0,0.00049862,30]
[320863426,1711648257338,-150.0,0.00049862,30]
[320863427,1711648257347,-2834.63,0.00049862,120]
[320863428,1711648257356,-11217.49,0.00049862,120]
[320863429,1711648257365,-500.0,0.00049862,120]
[320863430,1711648257375,-2534.29,0.00049862,120]
[320863431,1711648257384,-728.04,0.00049862,120]
[320863432,1711648257397,-2600.26,0.00049862,120]
[320863433,1711648257407,-9965.31,0.00049862,120]
[320863434,1711648257417,-1753.43,0.00049862,120]
[320863435,1711648257427,-1147.84,0.00049862,120]
[320863436,1711648257436,-1147.84,0.00049862,120]
[320863437,1711648257445,-710.94,0.00049862,120]
[320863438,1711648257455,-500.0,0.00049863,120]
[320863439,1711648257464,-213.11819,0.00049863,120]
[320863440,1711648257473,-500.0,0.00049863,2]
[320863441,1711648257482,-500.0,0.00049863,120]
[320863442,1711648257492,-500.0,0.00049863,120]
[320863443,1711648257502,-500.0,0.00049863,120]
[320863444,1711648257511,-500.0,0.00049863,120]
[320863445,1711648257520,-500.0,0.00049863,120]
[320863446,1711648257529,-500.0,0.00049863,120]
[320863447,1711648257538,-453.96512326,0.00049863,120]
[320863448,1711648257547,-500.0,0.00049863,120]
[320863449,1711648257557,-500.0,0.00049863,120]
[320863450,1711648257565,-500.0,0.00049863,120]
[320863451,1711648257574,-500.0,0.00049863,120]
[320863452,1711648257583,-500.0,0.00049863,120]
[320863453,1711648257592,-500.0,0.00049863,120]
[320863454,1711648257601,-500.0,0.00049863,120]
[320863455,1711648257610,-512.76,0.00049863,120]
[320863456,1711648257619,-500.0,0.00049863,120]
[320863457,1711648257628,-500.0,0.00049863,120]
[320863458,1711648257637,-331.48647862,0.00049863,120]
[320863459,1711648257647,-500.0,0.00049863,120]
[320863460,1711648257656,-558.07836688,0.00049863,2]
[320863461,1711648257665,-500.0,0.00049863,120]
[320863462,1711648257674,-345.05970839,0.00049863,120]
[320863463,1711648257683,-500.0,0.00049863,120]
[320863464,1711648257692,-500.0,0.00049863,120]
[320863465,1711648257701,-670.05,0.00049863,120]
[320863466,1711648257710,-500.0,0.00049863,120]
[320863467,1711648257719,-173.40094448,0.00049863,120]
[320863468,1711648257728,-500.0,0.00049863,120]
[320863469,1711648257737,-500.0,0.00049863,120]
[320863470,1711648257746,-483.28041864,0.00049863,120]
[320863471,1711648257755,-500.0,0.00049863,120]
[320863472,1711648257764,-500.0,0.00049863,120]
[320863473,1711648257773,-500.0,0.00049863,120]
[320863474,1711648257782,-571.85,0.00049863,120]
[320863475,1711648257791,-500.0,0.00049863,120]
[320863476,1711648257801,-500.0,0.00049863,120]
[320863477,1711648257810,-500.0,0.00049863,120]
[320863478,1711648257819,-500.0,0.00049863,120]
[320863479,1711648257829,-665.77,0.00049863,120]
[320863480,1711648257838,-500.0,0.00049863,120]
[320863481,1711648257847,-773.75,0.00049863,120]
[320863482,1711648257855,-500.0,0.00049863,120]
[320863483,1711648257864,-500.0,0.00049863,120]
[320863484,1711648257874,-500.0,0.00049863,120]
[320863485,1711648257883,-500.0,0.00049863,120]
[320863486,1711648257894,-500.0,0.00049863,120]
[320863487,1711648257902,-500.0,0.00049863,120]
[320863488,1711648257911,-500.0,0.00049863,120]
[320863489,1711648257920,-500.0,0.00049863,120]
[320863490,1711648257929,-1064.91,0.00049863,120]
[320863491,1711648257938,-500.0,0.00049863,120]
[320863492,1711648257947,-500.0,0.00049863,120]
[320863493,1711648257956,-500.0,0.00049863,120]
[320863494,1711648257965,-500.0,0.00049863,120]
[320863495,1711648257975,-500.0,0.00049863,120]
[320863496,1711648257983,-500.0,0.00049863,120]
[320863497,1711648257992,-705.85,0.00049863,120]
[320863498,1711648258001,-800.0,0.00049863,120]
[320863499,1711648258011,-500.0,0.00049863,120]
[320863500,1711648258020,-151.0,0.00049863,120]
[320863501,1711648258029,-500.0,0.00049863,120]
[320863502,1711648258039,-720.27,0.00049863,120]
[320863503,1711648258051,-500.0,0.00049863,120]
[320863504,1711648258061,-500.0,0.00049863,120]
[320863505,1711648258071,-500.0,0.00049863,120]
[320863506,1711648258080,-500.0,0.00049863,120]
[320863507,1711648258090,-500.0,0.00049863,120]
[320863508,1711648258100,-300.0,0.00049863,2]
[320863509,1711648258111,-500.0,0.00049863,120]
[320863510,1711648258121,-577.27,0.00049863,120]
[320863511,1711648258131,-500.0,0.00049863,120]
[320863512,1711648258141,-539.82,0.00049863,120]
[320863513,1711648258151,-743.85,0.00049863,120]
[320863514,1711648258160,-500.0,0.00049863,120]
[320863515,1711648258169,-616.79981033,0.00049863,120]
[320863516,1711648258179,-500.0,0.00049863,120]
[320863517,1711648258188,-549.9,0.00049863,120]
[320863518,1711648258198,-500.0,0.00049863,120]
[320863519,1711648258208,-500.0,0.00049863,120]
[320863520,1711648258217,-500.0,0.00049863,120]
[320863521,1711648258227,-500.0,0.00049863,120]
[320863522,1711648258236,-500.0,0.00049863,120]
[320863523,1711648258246,-500.0,0.00049863,120]
[320863524,1711648258255,-665.46,0.00049863,120]
[320863525,1711648258265,-1000.0,0.00049863,120]
[320863526,1711648258275,-500.0,0.00049863,120]
[320863527,1711648258284,-523.67,0.00049863,120]
[320863528,1711648258294,-151.0,0.00049863,120]
[320863529,1711648258303,-500.0,0.00049863,120]
[320863530,1711648258312,-500.0,0.00049863,120]
[320863531,1711648258321,-500.0,0.00049863,120]
[320863532,1711648258331,-500.0,0.00049863,120]
[320863533,1711648258340,-500.0,0.00049863,120]
[320863534,1711648258350,-500.0,0.00049863,120]
[320863535,1711648258359,-500.0,0.00049863,2]
[320863536,1711648258368,-500.0,0.00049863,120]
[320863537,1711648258378,-500.0,0.00049863,120]
[320863538,1711648258387,-500.0,0.00049863,120]
[320863539,1711648258398,-500.0,0.00049863,120]
[320863540,1711648258407,-500.0,0.00049863,120]
[320863541,1711648258417,-698.95,0.00049863,120]
[320863542,1711648258426,-500.0,0.00049863,120]
[320863543,1711648258435,-500.0,0.00049863,120]
[320863544,1711648258445,-569.15,0.00049863,120]
[320863545,1711648258455,-1033.15,0.00049863,120]
[320863546,1711648258465,-1004.93,0.00049863,120]
[320863547,1711648258475,-586.32,0.00049863,120]
[320863548,1711648258484,-1084.32,0.00049863,120]
[320863549,1711648258494,-563.18,0.00049863,120]
[320863550,1711648258503,-751.29,0.00049863,120]
[320863551,1711648258512,-1310.76,0.00049863,120]
[320863552,1711648258522,-500.0,0.00049863,120]
[320863553,1711648258532,-500.0,0.00049863,120]
[320863554,1711648258543,-1083.38,0.00049863,120]
[320863555,1711648258552,-696.55,0.00049863,120]
[320863556,1711648258562,-819.36,0.00049863,120]
[320863557,1711648258571,-500.0,0.00049863,120]
[320863558,1711648258580,-500.0,0.00049863,120]
[320863559,1711648258590,-500.0,0.00049863,120]
[320863560,1711648258599,-151.0,0.00049863,120]
[320863561,1711648258608,-542.36,0.00049863,120]
[320863562,1711648258617,-151.0,0.00049863,120]
[320863563,1711648258627,-713.87,0.00049863,120]
[320863564,1711648258636,-500.0,0.00049863,120]
[320863565,1711648258647,-500.0,0.00049863,120]
[320863566,1711648258656,-151.0,0.00049863,120]
[320863567,1711648258665,-500.0,0.00049863,120]
[320863568,1711648258674,-151.0,0.00049863,120]
[320863569,1711648258683,-500.0,0.00049863,120]
[320863570,1711648258692,-585.67,0.00049863,30]
[320863571,1711648258702,-500.0,0.00049863,120]
[320863572,1711648258711,-527.28,0.00049863,120]
[320863573,1711648258720,-500.0,0.00049863,120]
[320863574,1711648258729,-500.0,0.00049863,120]
[320863575,1711648258738,-500.0,0.00049863,120]
[320863576,1711648258748,-151.0,0.00049863,120]
[320863577,1711648258757,-151.0,0.00049863,120]
[320863578,1711648258767,-500.0,0.00049863,120]
[320863579,1711648258776,-1171.77,0.00049863,120]
[320863580,1711648258785,-503.17,0.00049863,120]
[320863581,1711648258794,-500.0,0.00049863,120]
[320863582,1711648258803,-466.91155359,0.00049863,120]
[320863583,1711648258812,-151.0,0.00049863,120]
[320863584,1711648258821,-210.65,0.00049863,120]
[320863585,1711648258831,-500.0,0.00049863,120]
[320863586,1711648258840,-641.86,0.00049863,120]
[320863587,1711648258849,-723.9,0.00049863,120]
[320863588,1711648258858,-644.1,0.00049863,120]
[320863589,1711648258868,-1538.77,0.00049863,120]
[320863590,1711648258877,-151.0,0.00049863,60]
[320863591,1711648258886,-500.0,0.00049863,120]
[320863592,1711648258896,-500.0,0.00049863,120]
[320863593,1711648258905,-500.0,0.00049863,120]
[320863594,1711648258915,-360.9,0.00049863,120]
[320863595,1711648258924,-500.0,0.00049863,120]
[320863596,1711648258933,-500.0,0.00049863,120]
[320863597,1711648258943,-519.53,0.00049863,120]
[320863598,1711648258952,-1186.42,0.00049863,120]
[320863599,1711648258960,-838.4,0.00049863,120]
[320863600,1711648258970,-500.0,0.00049863,120]
[320863601,1711648258979,-500.0,0.00049863,120]
[320863602,1711648258988,-500.0,0.00049863,120]
[320863603,1711648258998,-748.46,0.00049863,120]
[320863604,1711648259008,-500.0,0.00049863,120]
[320863605,1711648259018,-500.0,0.00049863,120]
[320863606,1711648259028,-500.0,0.00049863,120]
[320863607,1711648259039,-500.0,0.00049863,120]
[320863608,1711648259049,-500.0,0.00049863,120]
[320863609,1711648259058,-190.397912,0.00049863,120]
[320863610,1711648259068,-163.70371068,0.00049863,120]
[320863611,1711648259078,-226.2918325,0.00049863,120]
[320863612,1711648259088,-1181.45,0.00049863,120]
[320863613,1711648259098,-500.0,0.00049863,120]
[320863614,1711648259107,-505.49,0.00049863,120]
[320863615,1711648259117,-500.0,0.00049863,120]
[320863616,1711648259128,-500.0,0.00049863,120]
[320863617,1711648259137,-1214.19,0.00049863,120]
[320863618,1711648259147,-500.0,0.00049863,120]
[320863619,1711648259157,-500.0,0.00049863,120]
[320863620,1711648259166,-500.0,0.00049863,120]
[320863621,1711648259176,-1094.64,0.00049863,120]
[320863622,1711648259185,-500.0,0.00049863,120]
[320863623,1711648259195,-350.71,0.00049863,120]
[320863624,1711648259205,-506.61,0.00049863,120]
[320863625,1711648259215,-533.04,0.00049863,120]
[320863626,1711648259225,-500.0,0.00049863,120]
[320863627,1711648259234,-500.0,0.00049863,120]
[320863628,1711648259243,-902.71,0.00049863,120]
[320863629,1711648259253,-500.0,0.00049863,120]
[320863630,1711648259262,-500.0,0.00049863,120]
[320863631,1711648259272,-500.0,0.00049863,120]
[320863632,1711648259282,-323.55859535,0.00049863,120]
[320863633,1711648259291,-495.63,0.00049863,120]
[320863634,1711648259301,-570.81,0.00049863,120]
[320863635,1711648259310,-1737.86,0.00049863,120]
[320863636,1711648259319,-500.0,0.00049863,120]
[320863637,1711648259328,-500.0,0.00049863,120]
[320863638,1711648259338,-500.0,0.00049863,120]
[320863639,1711648259347,-812.17,0.00049863,120]
[320863640,1711648259356,-500.0,0.00049863,120]
[320863641,1711648259366,-500.0,0.00049863,120]
[320863642,1711648259375,-500.0,0.00049863,120]
[320863643,1711648259385,-500.0,0.00049863,120]
[320863644,1711648259394,-505.72335276,0.00049863,120]
[320863645,1711648259403,-500.0,0.00049863,120]
[320863646,1711648259412,-500.0,0.00049863,120]
[320863647,1711648259421,-500.0,0.00049863,120]
[320863648,1711648259430,-616.82,0.00049863,120]
[320863649,1711648259439,-500.0,0.00049863,120]
[320863650,1711648259448,-533.23067823,0.00049863,120]
[320863651,1711648259457,-500.0,0.00049863,120]
[320863652,1711648259467,-807.52,0.00049863,120]
[320863653,1711648259476,-518.39012891,0.00049863,120]
[320863654,1711648259485,-572.54,0.00049863,120]
[320863655,1711648259495,-666.22,0.00049863,120]
[320863656,1711648259505,-519.25933937,0.00049863,120]
[320863657,1711648259514,-500.0,0.00049863,120]
[320863658,1711648259523,-500.0,0.00049863,120]
[320863659,1711648259532,-500.0,0.00049863,120]
[320863660,1711648259542,-507.14,0.00049863,120]
[320863661,1711648259551,-1661.1,0.00049863,120]
[320863662,1711648259560,-500.0,0.00049863,120]
[320863663,1711648259570,-500.0,0.00049863,120]
[320863664,1711648259579,-1088.11,0.00049863,120]
[320863665,1711648259589,-500.0,0.00049863,120]
[320863666,1711648259598,-500.0,0.00049863,120]
[320863667,1711648259607,-246.02064303,0.00049863,120]
[320863668,1711648259617,-500.0,0.00049863,120]
[320863669,1711648259785,-500.0,0.00049863,120]
[320863670,1711648259796,-500.0,0.00049863,120]
[320863671,1711648259805,-1642.38,0.00049863,120]
[320863672,1711648259815,-500.0,0.00049863,120]
[320863673,1711648259825,-500.0,0.00049863,120]
[320863674,1711648259834,-667.86,0.00049863,120]
[320863675,1711648259843,-500.0,0.00049863,120]
[320863676,1711648259853,-509.32,0.00049863,120]
[320863677,1711648259862,-2026.02,0.00049863,120]
[320863678,1711648259872,-500.0,0.00049863,120]
[320863679,1711648259881,-1722.24,0.00049863,120]
[320863680,1711648259890,-1277.27,0.00049863,120]
[320863681,1711648259900,-500.0,0.00049863,120]
[320863682,1711648259909,-500.0,0.00049863,120]
[320863683,1711648259919,-500.0,0.00049863,120]
[320863684,1711648259928,-299.820304,0.00049863,120]
[320863685,1711648259937,-2185.93,0.00049863,120]
[320863686,1711648259946,-511.35959701,0.00049863,120]
[320863687,1711648259956,-628.61,0.00049863,120]
[320863688,1711648259966,-500.0,0.00049863,120]
[320863689,1711648259975,-986.05,0.00049863,120]
[320863690,1711648259985,-500.0,0.00049863,120]
[320863691,1711648259994,-500.0,0.00049863,120]
[320863692,1711648260003,-500.0,0.00049863,120]
[320863693,1711648260013,-500.0,0.00049863,120]
[320863694,1711648260022,-2451.86,0.00049863,120]
[320863695,1711648260031,-970.38,0.00049863,120]
[320863696,1711648260042,-512.73156826,0.00049863,120]
[320863697,1711648260054,-3604.4,0.00049863,120]
[320863698,1711648260064,-808.42,0.00049863,120]
[320863699,1711648260074,-643.24,0.00049863,120]
[320863700,1711648260083,-14513.03,0.00049863,120]
[320863701,1711648260094,-500.0,0.00049863,120]
[320863702,1711648260103,-1160.05,0.00049863,120]
[320863703,1711648260113,-500.0,0.00049863,120]
[320863704,1711648260124,-581.21,0.00049863,120]
[320863705,1711648260133,-500.0,0.00049863,120]
[320863706,1711648260143,-500.0,0.00049863,120]
[320863707,1711648260152,-1071.34,0.00049863,120]
[320863708,1711648260163,-730.26,0.00049863,120]
[320863709,1711648260173,-500.0,0.00049863,120]
[320863710,1711648260182,-500.0,0.00049863,120]
[320863711,1711648260193,-414.92315753,0.00049863,120]
[320863712,1711648260204,-1303.94,0.00049863,120]
[320863713,1711648260215,-500.0,0.00049863,120]
[320863714,1711648260225,-712.31,0.00049863,120]
[320863715,1711648260235,-500.0,0.00049863,120]
[320863716,1711648260245,-500.0,0.00049863,120]
[320863717,1711648260255,-500.0,0.00049863,120]
[320863718,1711648260266,-500.0,0.00049863,120]
[320863719,1711648260276,-1631.1,0.00049863,120]
[320863720,1711648260286,-796.63,0.00049863,120]
[320863721,1711648260297,-288.42161871,0.00049863,120]
[320863722,1711648260306,-11454.46,0.00049863,120]
[320863723,1711648260317,-552.7,0.00049863,120]
[320863724,1711648260326,-607.06,0.00049863,120]
[320863725,1711648260336,-500.0,0.00049863,120]
[320863726,1711648260346,-500.0,0.00049863,120]
[320863727,1711648260355,-929.97,0.00049863,120]
[320863728,1711648260365,-1279.4,0.00049863,120]
[320863729,1711648260374,-1830.75,0.00049863,120]
[320863730,1711648260384,-500.0,0.00049863,120]
[320863731,1711648260394,-2920.54,0.00049863,120]
[320863732,1711648260403,-530.22,0.00049863,120]
[320863733,1711648260412,-615.83123275,0.00049863,120]
[320863734,1711648260422,-500.0,0.00049863,120]
[320863735,1711648260432,-2024.02,0.00049863,120]
[320863736,1711648260442,-500.0,0.00049863,120]
[320863737,1711648260451,-500.0,0.00049863,120]
[320863738,1711648260462,-1950.36,0.00049863,120]
[320863739,1711648260471,-964.96,0.00049863,120]
[320863740,1711648260480,-1902.91,0.00049863,120]
[320863741,1711648260489,-1388.23,0.00049863,120]
[320863742,1711648260498,-500.0,0.00049863,120]
[320863743,1711648260508,-1395.82,0.00049863,120]
[320863744,1711648260517,-673.57,0.00049863,120]
[320863745,1711648260526,-500.0,0.00049863,120]
[320863746,1711648260536,-530.11,0.00049863,7]
[320863747,1711648260545,-716.53,0.00049863,120]
[320863748,1711648260554,-266.49762943,0.00049863,120]
[320863749,1711648260563,-1215.81,0.00049863,120]
[320863750,1711648260573,-500.0,0.00049863,120]
[320863751,1711648260582,-1351.58,0.00049863,120]
[320863752,1711648260591,-2858.67,0.00049863,120]
[320863753,1711648260600,-1543.97,0.00049863,120]
[320863754,1711648260609,-500.0,0.00049863,120]
[320863755,1711648260619,-1154.08,0.00049863,120]
[320863756,1711648260628,-530.90641538,0.00049863,120]
[320863757,1711648260637,-643.16,0.00049863,120]
[320863758,1711648260647,-500.0,0.00049863,120]
[320863759,1711648260656,-614.67,0.00049863,120]
[320863760,1711648260666,-1062.85,0.00049863,120]
[320863761,1711648260675,-1171.99,0.00049863,120]
[320863762,1711648260684,-352.59004,0.00049863,120]
[320863763,1711648260694,-500.0,0.00049863,120]
[320863764,1711648260707,-967.95,0.00049863,120]
[320863765,1711648260716,-1834.2,0.00049863,120]
[320863766,1711648260725,-515.19,0.00049863,120]
[320863767,1711648260735,-3346.5,0.00049863,120]
[320863768,1711648260745,-109.93199418,0.00049863,120]
[320863769,1711648261052,-448.43493619,0.00049863,120]
[320863770,1711648261062,-233.61506381,0.00049863,120]
[320863771,1711648261183,-253.52,0.00049863,120]
[320863772,1711648261865,1061.7419,0.0003,4]
[320863773,1711648261884,325.35565186,0.0003,4]
[320863786,1711648415758,-450.0,0.0003,4]
[320863808,1711649206136,-781.54136075,0.00029799,2]
[320863809,1711649206156,-331.99556386,0.00029899,2]
[320863810,1711649206177,-169.93885939,0.000299,2]
[320863811,1711649206196,-12.14952162,0.0003,4]
[320863832,1711649432298,-365.351025,0.0002985,2]
[320863833,1711649432308,-415.65011385,0.00029999,2]
[320863867,1711649438081,-5850.00003,0.00029999,2]
[320863868,1711649438185,-250.51237762,0.00029999,2]
[320863869,1711649438194,-1629.34811044,0.0003,4]
[320864063,1711649440098,-556.97677068,0.0003,4]
[320864065,1711649440110,-2091.6560454,0.0003,4]
[320864067,1711649440121,-1459.2772966,0.0003,2]
[320864077,1711649440202,-21129.00147526,0.0003,2]
[320864079,1711649440211,-3900.0,0.00035,7]
[320864081,1711649440221,-151.52,0.0003614,2]
[320864083,1711649440230,-220.79,0.00036368,2]
[320864085,1711649440239,-262.0,0.000387,2]
[320864087,1711649440249,-18092.82652741,0.00039,3]
[320864089,1711649440258,-361.96362888,0.0003967,4]
[320864091,1711649440267,-150.99,0.0003967,2]
[320864093,1711649440276,-150.99,0.00040779,10]
[320864095,1711649440286,-499.99,0.00040779,2]
[320864097,1711649440295,-274.515,0.0004078,2]
[320864099,1711649440305,-900.0,0.0004078,14]
[320864101,1711649440314,-368.58,0.00043168,2]
[320864103,1711649440323,-150.97,0.00045185,15]
[320864105,1711649440333,-1500.0,0.00045197,120]
[320864108,1711649440343,-150.0,0.0004522,2]
[320864110,1711649440355,-159.05,0.00045239,2]
[320864112,1711649440365,-500.0,0.00045311,2]
[320864114,1711649440374,-216.39,0.00045333,2]
[320864116,1711649440384,-508.06,0.00045393,2]
[320864118,1711649440395,-368.58,0.00045432,2]
[320864120,1711649440404,-183.52,0.00045468,2]
[320864122,1711649440414,-500.0,0.00045469,2]
[320864124,1711649440423,-173.12,0.0004548,10]
[320864126,1711649440432,-250.0,0.00045504,112]
[320864128,1711649440443,-200.0,0.00045517,2]
[320864130,1711649440452,-156.0,0.00045594,2]
[320864132,1711649440462,-1108.76,0.00045616,120]
[320864134,1711649440472,-532.46,0.00045714,2]
[320864136,1711649440482,-547.36,0.00045969,2]
[320864138,1711649440492,-165.69,0.00046211,2]
[320864140,1711649440502,-708.31,0.00047605,120]
[320864143,1711649440511,-368.58,0.00047696,2]
[320864145,1711649440521,-937.6,0.00047728,2]
[320864147,1711649440530,-153.42175555,0.00047831,30]
[320864149,1711649440539,-363.30728316,0.00047899,4]
[320864151,1711649440549,-1206.49537966,0.00047899,4]
[320864153,1711649440559,-2201.89288965,0.00047899,4]
[320864155,1711649440568,-310.0,0.00047899,2]
[320864157,1711649440577,-158.16674897,0.0004795,30]
[320864159,1711649440587,-30000.0,0.00048,2]
[320864161,1711649440596,-270.0,0.00048169,30]
[320864163,1711649440605,-183.52,0.00048208,2]
[320864165,1711649440614,-1097.32390462,0.00048329,2]
[320864167,1711649440623,-150.97,0.0004861,15]
[320864169,1711649440633,-158.16674897,0.00048721,30]
[320864197,1711649440643,-51507.19323698,0.0004888,2]
[320864201,1711649440905,-2500.0,0.000489,2]
[320864203,1711649440915,-156.82024275,0.00048953,13]
[320864205,1711649440925,-161.35,0.0004899,2]
[320864207,1711649440934,-150418.09191512,0.00049,30]
[320864210,1711649440944,-153.42175555,0.00049053,30]
[320864212,1711649440953,-270.0,0.00049183,30]
[320864214,1711649440963,-270.0,0.00049275,30]
[320864216,1711649440972,-692.0,0.000493,2]
[320864218,1711649440981,-174.75,0.00049305,2]
[320864220,1711649440990,-213.17723807,0.00049312,2]
[320864222,1711649440999,-414.6844583,0.00049314,2]
[320864224,1711649441008,-155.0,0.00049314,4]
[320864226,1711649441017,-505.77949815,0.00049315,120]
[320864228,1711649441027,-422.88803452,0.00049315,120]
[320864230,1711649441036,-500.0,0.00049315,2]
[320864232,1711649441045,-432.89383155,0.00049315,2]
[320864234,1711649441054,-500.0,0.00049315,2]